fUST/lending_fUST_20251204
["ID","MTS","AMOUNT","RATE_DAILY","PERIOD"]
[396190192,1764795045686,-163.1371743,0.00013699,2]
[396190194,1764795045696,-500.0,0.00013699,2]
[396190197,1764795045706,-500.0,0.00013699,2]
[396190199,1764795045716,-500.0,0.00013699,2]
[396190201,1764795045725,-500.56828443,0.00013699,2]
[396190202,1764795045735,-158.34533516,0.00013699,2]
[396190204,1764795045743,-500.0,0.00013699,2]
[396190207,1764795045753,-500.0,0.00013699,2]
[396190208,1764795045764,-500.0,0.00013699,2]
[396190210,1764795045773,-160.14478443,0.00013699,2]
[396190212,1764795045783,-500.0,0.00013699,2]
[396190215,1764795045793,-500.0,0.00013699,2]
[396190217,1764795045802,-500.0,0.00013699,2]
[396190219,1764795045811,-500.0,0.00013699,2]
[396190220,1764795045821,-500.0,0.00013699,2]
[396190223,1764795045830,-500.0,0.00013699,2]
[396190225,1764795045840,-500.0,0.00013699,2]
[396190227,1764795045859,-184.13416818,0.00013699,2]
[396190228,1764795045870,-512.78613144,0.00013699,2]
[396190230,1764795045879,-500.0,0.00013699,2]
[396190232,1764795045888,-500.0,0.00013699,2]
[396190234,1764795045898,-500.0,0.00013699,2]
[396190236,1764795045908,-500.35225259,0.00013699,2]
[396190238,1764795045918,-185.42090147,0.00013726,2]
[396190241,1764795045932,-500.0,0.00013742,2]
[396190243,1764795045943,-500.0,0.00013742,2]
[396190245,1764795045953,-500.0,0.00013742,2]
[396190247,1764795045962,-1101.0,0.00013744,2]
[396190249,1764795045973,-500.0,0.00013744,2]
[396190251,1764795045982,-546.0,0.00013744,2]
[396190253,1764795045991,-2607.0,0.00013745,2]
[396190255,1764795046001,-635.0,0.00013745,2]
[396190257,1764795046011,-671.0,0.00013745,2]
[396190259,1764795046021,-500.0,0.00013745,2]
[396190261,1764795046030,-3199.0,0.00013746,2]
[396190263,1764795046039,-2607.0,0.00013768,2]
[396190265,1764795046049,-340.3298772,0.00013778,2]
[396190267,1764795046058,-500.0,0.00013779,2]
[396190269,1764795046068,-10904.50740588,0.00013782,2]
[396190271,1764795046077,-2243.88905284,0.00013808,2]
[396190273,1764795046086,-4064.28175807,0.00013811,2]
[396190275,1764795046095,-202.59466378,0.0001382,2]
[396190277,1764795046104,-306.97952348,0.00013821,2]
[396190279,1764795046113,-1000.0,0.00013821,2]
[396190281,1764795046123,-1000.0,0.00013821,2]
[396190284,1764795046133,-230.73029868,0.00013821,2]
[396190285,1764795046142,-1000.0,0.00013821,2]
[396190288,1764795046152,-1000.0,0.00013821,2]
[396190290,1764795046163,-1000.0,0.00013821,2]
[396190292,1764795046174,-1000.0,0.00013821,2]
[396190294,1764795046183,-1000.0,0.00013821,2]
[396190296,1764795046193,-1000.0,0.00013821,2]
[396190297,1764795046202,-1000.0,0.00013821,2]
[396190299,1764795046212,-1000.9266989,0.00013821,2]
[396190301,1764795046221,-1000.0,0.00013821,2]
[396190304,1764795046230,-481.81960731,0.00013821,2]
[396190306,1764795046240,-1147.85080601,0.00013821,2]
[396190308,1764795046249,-697.47342981,0.00013821,2]
[396190310,1764795046259,-1000.0,0.00013821,2]
[396190312,1764795046268,-1000.0,0.00013821,2]
[396190314,1764795046277,-1000.0,0.00013821,2]
[396190315,1764795046286,-1000.0,0.00013821,2]
[396190317,1764795046295,-1000.0,0.00013821,2]
[396190320,1764795046305,-1000.0,0.00013821,2]
[396190322,1764795046314,-1000.54706075,0.00013821,2]
[396190323,1764795046324,-600.85559501,0.00013821,2]
[396190325,1764795046334,-1000.0,0.00013821,2]
[396190327,1764795046343,-1000.0,0.00013821,2]
[396190329,1764795046353,-509.57781534,0.00013821,2]
[396190331,1764795046362,-1000.0,0.00013821,2]
[396190334,1764795046372,-1000.0,0.00013821,2]
[396190335,1764795046381,-1000.0,0.00013821,2]
[396190338,1764795046391,-1000.0,0.00013821,2]
[396190339,1764795046400,-393.15338692,0.00013821,2]
[396190342,1764795046410,-1000.0,0.00013821,2]
[396190343,1764795046419,-1000.0,0.00013821,2]
[396190345,1764795046428,-231.73012996,0.00013821,2]
[396190348,1764795046438,-1000.0,0.00013821,2]
[396190350,1764795046447,-1000.0,0.00013821,2]
[396190352,1764795046456,-1000.0,0.00013821,2]
[396190354,1764795046466,-1000.0,0.00013821,2]
[396190356,1764795046475,-1000.0,0.00013821,2]
[396190358,1764795046485,-1000.0,0.00013821,2]
[396190360,1764795046495,-1000.0,0.00013821,2]
[396190362,1764795046504,-1000.0,0.00013821,2]
[396190364,1764795046513,-500.45825393,0.00013821,2]
[396190366,1764795046523,-1000.0,0.00013821,2]
[396190368,1764795046532,-1000.0,0.00013821,2]
[396190370,1764795046541,-1000.0,0.00013821,2]
[396190372,1764795046551,-1000.0,0.00013821,2]
[396190374,1764795046560,-1000.0,0.00013821,2]
[396190376,1764795046569,-445.17307539,0.00013849,2]
[396190378,1764795046579,-160.0,0.00013852,2]
[396190380,1764795046587,-535.64593231,0.00013879,2]
[396190382,1764795046597,-500.0,0.00013879,2]
[396190384,1764795046607,-500.0,0.00013879,2]
[396190386,1764795046617,-168.0,0.00013881,2]
[396190388,1764795046627,-1101.0,0.00013881,2]
[396190390,1764795046636,-500.0,0.00013881,2]
[396190392,1764795046646,-546.0,0.00013881,2]
[396190394,1764795046655,-635.0,0.00013882,2]
[396190396,1764795046664,-671.0,0.00013882,2]
[396190399,1764795046674,-500.0,0.00013882,2]
[396190401,1764795046683,-3199.0,0.00013905,2]
[396190402,1764795046692,-3199.0,0.00013939,2]
[396190404,1764795046702,-4064.28175807,0.00013939,2]
[396190406,1764795046711,-150.066,0.0001396,2]
[396190409,1764795046721,-150.0,0.0001396,2]
[396190411,1764795046730,-150.099,0.0001396,2]
[396190412,1764795046739,-150.306,0.0001396,2]
[396190415,1764795046748,-500.0,0.00013973,2]
[396190416,1764795046758,-162.99977458,0.00013973,2]
[396190418,1764795046767,-596.448598,0.00013973,2]
[396190421,1764795046777,-596.448598,0.00013973,2]
[396190422,1764795046786,-545.6818978,0.00013973,2]
[396190424,1764795046795,-301.8571292,0.00013973,2]
[396190426,1764795046804,-301.8571292,0.00013973,2]
[396190428,1764795046813,-301.8571292,0.00013973,2]
[396190430,1764795046822,-301.8571292,0.00013973,2]
[396190432,1764795046832,-301.8571292,0.00013973,2]
[396190434,1764795046841,-301.8571292,0.00013973,2]
[396190435,1764795046851,-301.8571292,0.00013973,2]
[396190436,1764795046860,-301.8571292,0.00013973,2]
[396190437,1764795046871,-301.8571292,0.00013973,2]
[396190438,1764795046882,-301.8571292,0.00013973,2]
[396190439,1764795046892,-301.8571292,0.00013973,2]
[396190440,1764795046902,-301.8571292,0.00013973,2]
[396190441,1764795046912,-301.8571292,0.00013973,2]
[396190442,1764795046922,-2000.0,0.00014,2]
[396190443,1764795046935,-279.63983745,0.00014016,2]
[396190444,1764795046945,-497.85594007,0.00014016,2]
[396190445,1764795046954,-1101.0,0.00014018,2]
[396190446,1764795046963,-500.0,0.00014018,2]
[396190447,1764795046974,-546.0,0.00014018,2]
[396190448,1764795046983,-635.0,0.00014019,2]
[396190449,1764795046992,-671.0,0.00014019,2]
[396190450,1764795047003,-500.0,0.00014019,2]
[396190451,1764795047012,-518.5,0.00014028,2]
[396190453,1764795047022,-500.0,0.00014053,2]
[396190468,1764795047162,-4064.28175807,0.00014068,2]
[396190470,1764795047172,-537.6845,0.00014083,2]
[396190472,1764795047182,-284.4,0.000141,2]
[396190474,1764795047191,-284.4,0.000141,2]
[396190476,1764795047200,-557.5788265,0.00014138,2]
[396190478,1764795047210,-1101.0,0.00014155,2]
[396190480,1764795047220,-500.0,0.00014155,2]
[396190482,1764795047229,-546.0,0.00014155,2]
[396190484,1764795047239,-635.0,0.00014156,2]
[396190486,1764795047250,-671.0,0.00014156,2]
[396190488,1764795047259,-500.0,0.00014156,2]
[396190490,1764795047269,-159.92257699,0.00014178,2]
[396190492,1764795047278,-463.17867466,0.00014193,2]
[396190494,1764795047287,-4064.28175807,0.00014196,2]
[396190496,1764795047296,-204.0,0.00014208,2]
[396190498,1764795047306,-587.0,0.00014208,2]
[396190500,1764795047317,-690.4774433,0.0001423,2]
[396190502,1764795047326,-1000.0,0.00014247,2]
[396190504,1764795047335,-1000.0,0.00014247,2]
[396190506,1764795047345,-1000.0,0.00014247,2]
[396190508,1764795047354,-361.97619538,0.00014247,2]
[396190510,1764795047363,-1000.0,0.00014247,2]
[396190512,1764795047372,-1000.0,0.00014247,2]
[396190514,1764795047382,-1000.0,0.00014247,2]
[396190516,1764795047391,-1000.0,0.00014247,2]
[396190518,1764795047401,-1000.0,0.00014247,2]
[396190520,1764795047410,-1000.0,0.00014247,2]
[396190522,1764795047419,-1000.0,0.00014247,2]
[396190524,1764795047428,-1000.0,0.00014247,2]
[396190526,1764795047438,-647.19827791,0.00014247,2]
[396190528,1764795047447,-585.64786891,0.00014247,2]
[396190530,1764795047456,-1000.0,0.00014247,2]
[396190532,1764795047467,-1000.0,0.00014247,2]
[396190534,1764795047476,-945.06160533,0.00014247,2]
[396190536,1764795047485,-1000.0,0.00014247,2]
[396190538,1764795047494,-1000.0,0.00014247,2]
[396190540,1764795047503,-1000.0,0.00014247,2]
[396190542,1764795047512,-1000.0,0.00014247,2]
[396190544,1764795047521,-1000.0,0.00014247,2]
[396190546,1764795047530,-1000.0,0.00014247,2]
[396190548,1764795047541,-1000.0,0.00014247,2]
[396190550,1764795047550,-1001.20220603,0.00014247,2]
[396190552,1764795047559,-1000.0,0.00014247,2]
[396190554,1764795047568,-1000.0,0.00014247,2]
[396190556,1764795047577,-1000.4022363,0.00014247,2]
[396190558,1764795047586,-1000.0,0.00014247,2]
[396190560,1764795047595,-1000.0,0.00014247,2]
[396190562,1764795047605,-208.54326866,0.00014247,2]
[396190564,1764795047613,-950.40177865,0.00014247,2]
[396190566,1764795047623,-935.99908112,0.00014247,2]
[396190568,1764795047632,-1000.0,0.00014247,2]
[396190570,1764795047642,-501.00976375,0.00014247,2]
[396190572,1764795047651,-1000.0,0.00014247,2]
[396190574,1764795047661,-1000.0,0.00014247,2]
[396190576,1764795047670,-221.53337192,0.00014247,2]
[396190578,1764795047679,-670.27764259,0.00014247,2]
[396190580,1764795047689,-1000.0,0.00014247,2]
[396190582,1764795047698,-1000.0,0.00014247,2]
[396190584,1764795047708,-815.11053284,0.00014247,2]
[396190586,1764795047717,-1000.0,0.00014247,2]
[396190588,1764795047726,-960.36381463,0.00014247,2]
[396190590,1764795047735,-1000.0,0.00014247,2]
[396190592,1764795047745,-763.81018186,0.00014247,2]
[396190594,1764795047755,-1000.0,0.00014247,2]
[396190596,1764795047764,-500.0,0.00014247,2]
[396190598,1764795047773,-1000.0,0.00014247,2]
[396190600,1764795047782,-1000.0,0.00014247,2]
[396190602,1764795047791,-251.9963779,0.00014247,2]
[396190604,1764795047801,-1095.06211182,0.00014247,2]
[396190606,1764795047810,-1000.0,0.00014247,2]
[396190608,1764795047819,-1099.14945885,0.00014247,2]
[396190611,1764795047830,-1000.0,0.00014247,2]
[396190612,1764795047849,-1001.22409988,0.00014247,2]
[396190614,1764795047859,-1000.0,0.00014247,2]
[396190617,1764795047868,-2351.0,0.00014259,2]
[396190618,1764795047877,-1101.0,0.00014292,2]
[396190620,1764795047888,-417.19014174,0.00014292,2]
[396190622,1764795047898,-546.0,0.00014292,2]
[396190624,1764795047907,-635.0,0.00014293,2]
[396190626,1764795047916,-671.0,0.00014293,2]
[396190628,1764795047929,-500.0,0.00014293,2]
[396190630,1764795047938,-4064.28175807,0.00014325,2]
[396190632,1764795047948,-500.0,0.00014327,2]
[396190634,1764795047957,-168.0,0.00014358,2]
[396190636,1764795047967,-434.49581106,0.00014368,2]
[396190638,1764795047976,-1500.0,0.00014368,2]
[396190641,1764795047985,-1500.0,0.00014368,2]
[396190643,1764795047995,-1500.0,0.00014368,2]
[396190644,1764795048005,-1615.55041857,0.00014368,2]
[396190646,1764795048014,-202.50949594,0.00014368,2]
[396190648,1764795048022,-1498.78170114,0.00014368,2]
[396190650,1764795048031,-1585.07991406,0.00014368,2]
[396190652,1764795048040,-1500.0,0.00014368,2]
[396190654,1764795048050,-1244.57563733,0.00014368,2]
[396190656,1764795048059,-1500.0,0.00014368,2]
[396190658,1764795048068,-1500.0,0.00014368,2]
[396190660,1764795048078,-1500.0,0.00014368,2]
[396190662,1764795048088,-1500.0,0.00014368,2]
[396190664,1764795048097,-1504.73648743,0.00014368,2]
[396190666,1764795048106,-500.9465673,0.00014368,2]
[396190668,1764795048115,-1500.0,0.00014368,2]
[396190670,1764795048124,-1500.0,0.00014368,2]
[396190672,1764795048134,-1500.0,0.00014368,2]
[396190674,1764795048145,-1500.0,0.00014368,2]
[396190676,1764795048155,-1500.0,0.00014368,2]
[396190679,1764795048165,-1317.57108558,0.00014368,2]
[396190681,1764795048174,-587.91750257,0.00014368,2]
[396190682,1764795048184,-1500.0,0.00014368,2]
[396190685,1764795048194,-1500.0,0.00014368,2]
[396190687,1764795048203,-500.81853669,0.00014368,2]
[396190688,1764795048213,-224.23981727,0.00014368,2]
[396190690,1764795048223,-1500.0,0.00014368,2]
[396190692,1764795048232,-1500.0,0.00014368,2]
[396190694,1764795048242,-1500.0,0.00014368,2]
[396190696,1764795048252,-1500.0,0.00014368,2]
[396190698,1764795048261,-1500.0,0.00014368,2]
[396190700,1764795048272,-1500.0,0.00014368,2]
[396190702,1764795048282,-1634.23053628,0.00014368,2]
[396190704,1764795048292,-1500.0,0.00014368,2]
[396190707,1764795048302,-888.7729365,0.00014368,2]
[396190709,1764795048312,-1130.84100591,0.00014368,2]
[396190710,1764795048321,-260.0,0.000144,2]
[396190712,1764795048330,-831.05110574,0.00014414,2]
[396190714,1764795048339,-999.98,0.00014426,2]
[396190716,1764795048348,-999.98,0.00014426,2]
[396190718,1764795048358,-999.98,0.00014426,2]
[396190720,1764795048367,-1101.0,0.00014429,2]
[396190722,1764795048376,-546.0,0.00014429,2]
[396190724,1764795048386,-635.0,0.0001443,2]
[396190726,1764795048396,-671.0,0.0001443,2]
[396190728,1764795048405,-500.0,0.0001443,2]
[396190730,1764795048414,-4064.28175807,0.00014454,2]
[396190732,1764795048424,-999.98,0.00014489,2]
[396190734,1764795048433,-999.98,0.00014489,2]
[396190736,1764795048443,-999.98,0.00014489,2]
[396190738,1764795048452,-999.98,0.00014489,2]
[396190740,1764795048462,-999.98,0.00014489,2]
[396190742,1764795048472,-999.98,0.00014489,2]
[396190744,1764795048482,-999.98,0.00014489,2]
[396190746,1764795048491,-999.98,0.00014489,2]
[396190748,1764795048501,-999.98,0.00014489,2]
[396190750,1764795048510,-999.98,0.00014489,2]
[396190752,1764795048519,-999.98,0.00014489,2]
[396190754,1764795048529,-999.98,0.00014489,2]
[396190756,1764795048538,-999.98,0.00014489,2]
[396190758,1764795048547,-999.98,0.00014489,2]
[396190760,1764795048557,-999.98,0.00014489,2]
[396190762,1764795048566,-999.98,0.00014489,2]
[396190764,1764795048575,-999.98,0.00014489,2]
[396190766,1764795048584,-999.98,0.00014489,2]
[396190768,1764795048593,-999.98,0.00014489,2]
[396190770,1764795048602,-999.98,0.00014489,2]
[396190772,1764795048611,-1000.08000954,0.00014489,2]
[396190774,1764795048620,-168.0,0.00014502,2]
[396190776,1764795048631,-831.05110574,0.0001453,2]
[396190778,1764795048641,-1101.0,0.00014566,2]
[396190780,1764795048650,-546.0,0.00014566,2]
[396190782,1764795048660,-635.0,0.00014567,2]
[396190784,1764795048669,-671.0,0.00014567,2]
[396190786,1764795048678,-500.0,0.00014567,2]
[396190788,1764795048687,-4064.28175807,0.00014582,2]
[396190790,1764795048696,-500.0,0.00014601,2]
[396190792,1764795048705,-831.05110574,0.00014646,2]
[396190794,1764795048714,-1101.0,0.00014703,2]
[396190796,1764795048723,-546.0,0.00014703,2]
[396190798,1764795048732,-635.0,0.00014704,2]
[396190800,1764795048742,-671.0,0.00014704,2]
[396190802,1764795048751,-500.0,0.00014704,2]
[396190804,1764795048760,-4068.34603982,0.00014711,2]
[396190806,1764795048769,-48118.77620932,0.00014736,2]
[396190808,1764795048778,-831.05110574,0.00014761,2]
[396190810,1764795048788,-1628.64650043,0.00014795,2]
[396190812,1764795048797,-1135.94919276,0.00014795,2]
[396190814,1764795048807,-766.37466217,0.00014795,2]
[396190816,1764795048816,-1501.54351372,0.00014795,2]
[396190818,1764795048826,-1500.0,0.00014795,2]
[396190820,1764795048835,-1522.80785739,0.00014795,2]
[396190822,1764795048845,-1500.0,0.00014795,2]
[396190824,1764795048854,-615.92060662,0.00014795,2]
[396190826,1764795048863,-487.47311358,0.00014795,2]
[396190828,1764795048872,-1500.0,0.00014795,2]
[396190830,1764795048882,-1002.2713647,0.00014795,2]
[396190832,1764795048892,-1500.0,0.00014795,2]
[396190834,1764795048901,-1500.0,0.00014795,2]
[396190835,1764795048910,-1500.0,0.00014795,2]
[396190837,1764795048919,-602.63940368,0.00014795,2]
[396190839,1764795048933,-1500.0,0.00014795,2]
[396190841,1764795048942,-1500.0,0.00014795,2]
[396190843,1764795048951,-1500.0,0.00014795,2]
[396190845,1764795048960,-1210.38473537,0.00014795,2]
[396190847,1764795048969,-617.40295225,0.00014795,2]
[396190849,1764795048978,-1500.0,0.00014795,2]
[396190851,1764795048987,-1500.0,0.00014795,2]
[396190853,1764795048996,-1500.0,0.00014795,2]
[396190855,1764795049006,-1112.22437229,0.00014795,2]
[396190857,1764795049015,-501.3496294,0.00014795,2]
[396190859,1764795049024,-1500.0,0.00014795,2]
[396190861,1764795049033,-500.43748011,0.00014795,2]
[396190864,1764795049044,-1500.0,0.00014795,2]
[396190866,1764795049054,-501.0466406,0.00014795,2]
[396190867,1764795049063,-1500.0,0.00014795,2]
[396190869,1764795049073,-1500.64144955,0.00014795,2]
[396190872,1764795049082,-594.83999829,0.00014795,2]
[396190887,1764795049217,-160.0,0.000148,2]
[396190889,1764795049227,-157.12,0.00014815,2]
[396190891,1764795049237,-300.0,0.00014819,2]
[396190893,1764795049246,-300.0,0.00014819,2]
[396190895,1764795049256,-300.0,0.00014819,2]
[396190897,1764795049265,-300.0,0.00014819,2]
[396190899,1764795049275,-300.0,0.00014819,2]
[396190901,1764795049284,-300.0,0.00014819,2]
[396190903,1764795049294,-300.0,0.00014819,2]
[396190905,1764795049304,-300.0,0.00014819,2]
[396190907,1764795049313,-300.0,0.00014819,2]
[396190908,1764795049322,-300.0,0.00014819,2]
[396190909,1764795049331,-300.0,0.00014819,2]
[396190910,1764795049340,-300.0,0.00014819,2]
[396190911,1764795049350,-300.0,0.00014819,2]
[396190912,1764795049359,-300.0,0.00014819,2]
[396190913,1764795049368,-300.0,0.00014819,2]
[396190915,1764795049377,-600.0,0.00014819,2]
[396190917,1764795049386,-314.24,0.00014827,2]
[396190919,1764795049395,-1101.0,0.0001484,2]
[396190921,1764795049404,-546.0,0.0001484,2]
[396190923,1764795049413,-635.0,0.00014841,2]
[396190925,1764795049422,-671.0,0.00014841,2]
[396190927,1764795049431,-500.0,0.00014841,2]
[396190929,1764795049439,-157.42906576,0.00014855,2]
[396190931,1764795049449,-159.02816978,0.00014859,2]
[396190933,1764795049457,-500.0,0.00014875,2]
[396190935,1764795049467,-831.05110574,0.00014877,2]
[396190938,1764795049476,-3372.4898053,0.00014881,2]
[396190939,1764795049485,-592.28221615,0.000149,2]
[396190942,1764795049495,-1356.99728133,0.000149,2]
[396190944,1764795049504,-157.12,0.00014916,2]
[396190945,1764795049513,-518.94248653,0.00014916,2]
[396190947,1764795049523,-1891.92887852,0.00014916,2]
[396190950,1764795049532,-2000.0,0.00014916,2]
[396190951,1764795049541,-182.24866509,0.00014916,2]
[396190954,1764795049550,-2000.0,0.00014916,2]
[396190956,1764795049559,-2000.0,0.00014916,2]
[396190957,1764795049568,-2000.0,0.00014916,2]
[396190959,1764795049577,-2000.0,0.00014916,2]
[396190961,1764795049586,-1012.73080833,0.00014916,2]
[396190963,1764795049595,-1027.70416456,0.00014916,2]
[396190965,1764795049604,-2000.0,0.00014916,2]
[396190967,1764795049613,-2000.0,0.00014916,2]
[396190969,1764795049621,-1500.0,0.00014916,2]
[396190971,1764795049631,-2000.0,0.00014916,2]
[396190973,1764795049640,-462.89271318,0.00014916,2]
[396190976,1764795049650,-1730.64684093,0.00014916,2]
[396190978,1764795049659,-2000.0,0.00014916,2]
[396190979,1764795049668,-1313.09437533,0.00014916,2]
[396190982,1764795049678,-2000.0,0.00014916,2]
[396190984,1764795049687,-2000.0,0.00014916,2]
[396190985,1764795049696,-854.79763394,0.00014916,2]
[396190988,1764795049706,-2000.0,0.00014916,2]
[396190989,1764795049715,-360.0,0.00014948,2]
[396190992,1764795049725,-50000.0,0.0001497,2]
[396190994,1764795049735,-1101.0,0.00014977,2]
[396190996,1764795049744,-546.0,0.00014977,2]
[396190998,1764795049754,-635.0,0.00014978,2]
[396190999,1764795049763,-671.0,0.00014978,2]
[396191002,1764795049773,-500.0,0.00014978,2]
[396191003,1764795049782,-252887.85352303,0.00014988,2]
[396191006,1764795049791,-831.05110574,0.00014993,2]
[396191008,1764795049800,-1014.32270427,0.00015,2]
[396191009,1764795049809,-18876.84960474,0.00015,2]
[396191012,1764795049818,-281.968325,0.00015068,2]
[396191014,1764795049827,-800.0,0.00015068,2]
[396191015,1764795049836,-965.14543126,0.00015081,2]
[396191017,1764795049846,-160.08249957,0.00015094,2]
[396191019,1764795049855,-831.88215684,0.00015109,2]
[396191022,1764795049864,-1101.0,0.00015114,2]
[396191023,1764795049873,-546.0,0.00015114,2]
[396191026,1764795049883,-635.0,0.00015115,2]
[396191028,1764795049893,-671.0,0.00015115,2]
[396191030,1764795049902,-235.7427925,0.00015115,2]
[396191032,1764795049912,-214.7071121,0.00015123,2]
[396191034,1764795049921,-153.0,0.00015123,2]
[396191036,1764795049934,-153.0,0.00015123,2]
[396191038,1764795049943,-500.0,0.00015149,2]
[396191040,1764795049952,-150.0,0.00015163,2]
[396191042,1764795049961,-1101.0,0.00015251,2]
[396191044,1764795049973,-546.0,0.00015251,2]
[396191046,1764795049982,-635.0,0.00015252,2]
[396191048,1764795049991,-671.0,0.00015252,2]
[396191050,1764795050000,-400.0,0.000153,2]
[396191052,1764795050009,-490.72794156,0.00015309,2]
[396191054,1764795050019,-493.32028976,0.00015324,2]
[396191056,1764795050028,-2000.0,0.00015342,2]
[396191058,1764795050037,-2102.83105729,0.00015342,2]
[396191060,1764795050046,-1178.41272614,0.00015342,2]
[396191062,1764795050055,-2000.0,0.00015342,2]
[396191064,1764795050064,-436.5850808,0.00015342,2]
[396191066,1764795050073,-2000.0,0.00015342,2]
[396191068,1764795050082,-2000.0,0.00015342,2]
[396191070,1764795050091,-2000.0,0.00015342,2]
[396191072,1764795050100,-503.23273612,0.00015342,2]
[396191074,1764795050109,-510.30491221,0.00015342,2]
[396191076,1764795050118,-1501.33146258,0.00015342,2]
[396191078,1764795050127,-1494.20724676,0.00015342,2]
[396191080,1764795050136,-2000.0,0.00015342,2]
[396191082,1764795050145,-1000.0,0.00015342,2]
[396191084,1764795050155,-2000.0,0.00015342,2]
[396191086,1764795050164,-883.31029481,0.00015372,2]
[396191088,1764795050172,-1101.0,0.00015388,2]
[396191090,1764795050181,-546.0,0.00015388,2]
[396191092,1764795050190,-635.0,0.00015389,2]
[396191094,1764795050200,-671.0,0.00015389,2]
[396191095,1764795050209,-887.97652156,0.00015403,2]
[396191097,1764795050218,-500.0,0.00015423,2]
[396191099,1764795050227,-1570.329413,0.00015434,2]
[396191101,1764795050236,-2500.0,0.00015464,2]
[396191103,1764795050246,-2500.0,0.00015464,2]
[396191105,1764795050255,-1318.0860823,0.00015464,2]
[396191108,1764795050265,-2500.0,0.00015464,2]
[396191110,1764795050274,-2500.0,0.00015464,2]
[396191112,1764795050285,-2500.0,0.00015464,2]
[396191114,1764795050294,-2500.0,0.00015464,2]
[396191116,1764795050304,-537.54571025,0.00015464,2]
[396191118,1764795050312,-2500.0,0.00015464,2]
[396191120,1764795050322,-2500.0,0.00015464,2]
[396191122,1764795050331,-2500.0,0.00015464,2]
[396191124,1764795050340,-2500.0,0.00015464,2]
[396191126,1764795050350,-1578.62492722,0.00015481,2]
[396191128,1764795050359,-460.0,0.00015496,2]
[396191130,1764795050368,-2453.63970782,0.00015497,2]
[396191132,1764795050377,-1101.0,0.00015525,2]
[396191134,1764795050388,-546.0,0.00015525,2]
[396191136,1764795050398,-635.0,0.00015526,2]
[396191138,1764795050407,-671.0,0.00015526,2]
[396191140,1764795050416,-2466.60144878,0.0001556,2]
[396191142,1764795050425,-3533.24117926,0.0001556,2]
[396191144,1764795050435,-823.0,0.00015601,2]
[396191146,1764795050444,-690.4774433,0.00015635,2]
[396191148,1764795050453,-1101.0,0.00015662,2]
[396191150,1764795050462,-546.0,0.00015662,2]
[396191152,1764795050471,-635.0,0.00015663,2]
[396191154,1764795050480,-671.0,0.00015663,2]
[396191156,1764795050490,-37233.0675933,0.00015678,2]
[396191158,1764795050499,-3015.0,0.00015685,2]
[396191160,1764795050508,-169.34130373,0.00015697,7]
[396191162,1764795050517,-500.0,0.00015697,2]
[396191164,1764795050526,-213.70544576,0.00015726,2]
[396191166,1764795050535,-1101.0,0.00015799,2]
[396191168,1764795050544,-546.0,0.00015799,2]
[396191170,1764795050554,-635.0,0.000158,2]
[396191172,1764795050563,-671.0,0.000158,2]
[396191174,1764795050572,-158.0,0.000158,2]
[396191176,1764795050581,-158.0,0.000158,2]
[396191178,1764795050591,-602.0658034,0.0001587,2]
[396191180,1764795050600,-150.0,0.00015885,2]
[396191182,1764795050609,-2500.0,0.0001589,2]
[396191184,1764795050618,-1149.53357804,0.0001589,2]
[396191186,1764795050627,-1541.319227,0.0001589,2]
[396191188,1764795050636,-2500.0,0.0001589,2]
[396191190,1764795050646,-2500.0,0.0001589,2]
[396191192,1764795050655,-2500.0,0.0001589,2]
[396191194,1764795050664,-2500.0,0.0001589,2]
[396191196,1764795050673,-1108.0,0.00015936,2]